[Event "Biel Main Tournament 2019"]
[Site "Biel"]
[Date "2019.07.30"]
[Round "7.8"]
[White "Valencak, Stanislav"]
[Black "Siddharth, Gopakumar"]
[Result "1/2-1/2"]
[ECO "B21"]
[WhiteElo "1942"]
[BlackElo "1847"]
[Annotator "NA"]
[PlyCount "127"]
[EventDate "2019.07.20"]
[EventType "swiss"]
[EventCountry "SUI"]
[TimeControl "40/5400+30:1800+30"]

1. e4 {[%emt 0:00:00]} c5 {[%emt 0:00:00]} 2. f4 {[%emt 0:00:00]} d5 {[%emt 0:00:00]} 3. e5 {[%emt 0:00:00]} Nc6 {[%emt 0:01:37]} 4. c4 {[%emt 0:00:55]} e6 {[%emt 0:01:06]} 5. Nf3 {[%emt 0:00:32]} f6 {[%emt 0:02:02]} 6. Nc3 {[%emt 0:03:47]} d4 {[%emt 0:03:39]} 7. Ne4 {[%emt 0:00:26]} fxe5 {[%emt 0:00:23]} 8. fxe5 {[%emt 0:01:27]} Qc7 {[%emt 0:01:07]} 9. d3 {[%emt 0:01:25]} Nxe5 {[%emt 0:01:13]} 10. Be2 {[%emt 0:00:57]} Be7 {[%emt 0:07:01]} 11. O-O {[%emt 0:00:20]} Nxf3+ {[%emt 0:00:24]} 12. Bxf3 {[%emt 0:00:46]} Nf6 {[%emt 0:00:08]} 13. Bf4 {[%emt 0:02:49]} e5 {[%emt 0:01:22]} 14. Bg3 {[%emt 0:00:31]} O-O {[%emt 0:04:01]} 15. Qe2 {[%emt 0:00:26]} Nxe4 {[%emt 0:03:47]} 16. Bxe4 {[%emt 0:00:23]} Bf6 {[%emt 0:04:22]} 17. Bd5+ {[%emt 0:06:12]} Kh8 {[%emt 0:00:32]} 18. Bxe5 {[%emt 0:00:19]} Bg4 {[%emt 0:01:13]} 19. Qxg4 {[%emt 0:01:38]} Bxe5 {[%emt 0:02:24]} 20. g3 {[%emt 0:01:23]} Bf6 {[%emt 0:04:31]} 21. Rae1 {[%emt 0:00:56]} Rae8 {[%emt 0:00:26]} 22. Qh5 {[%emt 0:04:29]} Rxe1 {[%emt 0:06:17]} 23. Rxe1 {[%emt 0:00:14]} g6 {[%emt 0:00:08]} 24. Qh3 {[%emt 0:01:45]} Bg5 {[%emt 0:05:52]} 25. Rf1 {[%emt 0:02:30]} Be3+ {[%emt 0:06:52]} 26. Kh1 {[%emt 0:01:11]} Rxf1+ {[%emt 0:00:26]} 27. Qxf1 {[%emt 0:00:11]} Kg7 {[%emt 0:00:13]} 28. Kg2 {[%emt 0:00:48]} Qe7 {[%emt 0:00:59]} 29. Qf3 {[%emt 0:01:14]} b6 {[%emt 0:00:16]} 30. Qg4 {[%emt 0:02:27]} Bg5 {[%emt 0:22:38]} 31. h4 {[%emt 0:03:30]} Bf6 {[%emt 0:00:21]} 32. Be4 {[%emt 0:01:50]} Qe5 {[%emt 0:02:31]} 33. b3 {[%emt 0:03:24]} Kf8 {[%emt 0:02:30]} 34. Qc8+ {[%emt 0:06:27]} Qe8 {[%emt 0:00:40]} 35. Qc7 {[%emt 0:00:28]} Qe7 {[%emt 0:00:12]} 36. Qc6 {[%emt 0:00:14]} Kg7 {[%emt 0:00:46]} 37. a4 {[%emt 0:00:51]} Be5 {[%emt 0:01:14]} 38. Qc8 {[%emt 0:00:58]} Bd6 {[%emt 0:02:12]} 39. Qg4 {[%emt 0:02:24]} Kh8 {[%emt 0:04:03]} 40. Kh3 {[%emt 0:00:00]} Qe5 {[%emt 0:00:00]} 41. Kg2 {[%emt 0:04:41]} Bb8 {[%emt 0:03:14]} 42. h5 {[%emt 0:01:48]} gxh5 {[%emt 0:00:17]} 43. Qc8+ {[%emt 0:00:16]} Kg7 {[%emt 0:00:10]} 44. Qd7+ {[%emt 0:00:14]} Kf8 {[%emt 0:00:49]} 45. Qd8+ {[%emt 0:06:10]} Kg7 {[%emt 0:00:56]} 46. Qh4 {[%emt 0:01:27]} h6 {[%emt 0:00:44]} 47. Qh3 {[%emt 0:01:35]} Kf6 {[%emt 0:04:30]} 48. Kf3 {[%emt 0:02:03]} Kg7 {[%emt 0:00:26]} 49. Qd7+ {[%emt 0:02:09]} Kf8 {[%emt 0:00:11]} 50. Ke2 {[%emt 0:01:24]} h4 {[%emt 0:04:51]} 51. Qd8+ {[%emt 0:00:40]} Kg7 {[%emt 0:00:32]} 52. Qxh4 {[%emt 0:00:31]} Qg5 {[%emt 0:00:29]} 53. Qh3 {[%emt 0:01:25]} Bxg3 {[%emt 0:05:29]} 54. Qd7+ {[%emt 0:01:20]} Kf8 {[%emt 0:01:25]} 55. Kd1 {[%emt 0:00:20]} Qh5+ {[%emt 0:03:12]} 56. Kc1 {[%emt 0:00:34]} Bf4+ {[%emt 0:00:35]} 57. Kc2 {[%emt 0:04:41]} Qe2+ {[%emt 0:00:11]} 58. Kb1 {[%emt 0:00:17]} Qe1+ {[%emt 0:07:38]} 59. Ka2 {[%emt 0:00:24]} Qd2+ {[%emt 0:00:32]} 60. Ka1 {[%emt 0:01:16]} Qc1+ {[%emt 0:00:30]} 61. Ka2 {[%emt 0:00:30]} Qc2+ {[%emt 0:00:04]} 62. Ka1 {[%emt 0:00:09]} Qc1+ {[%emt 0:00:17]} 63. Ka2 {[%emt 0:00:31]} Qc2+ {[%emt 0:00:30]} 64. Ka1 {[%emt 0:00:30]} 1/2-1/2

[Event "Biel Main Tournament 2019"]
[Site "Biel"]
[Date "2019.07.30"]
[Round "8.1"]
[White "Schneuwly, Achim"]
[Black "Thode, Gilda"]
[Result "1-0"]
[ECO "A47"]
[WhiteElo "1984"]
[BlackElo "1931"]
[Annotator "NA"]
[PlyCount "99"]
[EventDate "2019.07.20"]
[EventType "swiss"]
[EventCountry "SUI"]
[SourceTitle "playchess.com"]
[Source "ChessBase"]
[SourceQuality "1"]
[TimeControl "40/5400+30:1800+30"]

1. d4 {[%emt 0:00:00]} e6 {[%emt 0:05:10]} 2. Nd2 {[%emt 0:00:00]} Nf6 {[%emt 0:01:15]} 3. Ngf3 {[%emt 0:00:12]} c5 {[%emt 0:02:24]} 4. e3 {[%emt 0:00:12]} b6 {[%emt 0:00:38]} 5. Bd3 {[%emt 0:00:32]} Bb7 {[%emt 0:00:19]} 6. O-O {[%emt 0:00:14]} Nc6 {[%emt 0:00:27]} 7. Re1 {[%emt 0:00:48]} Be7 {[%emt 0:09:35]} 8. b3 {[%emt 0:10:19]} Nb4 {[%emt 0:32:47]} 9. Bf1 {[%emt 0:07:56]} Ne4 {[%emt 0:12:23]} 10. Bb2 {[%emt 0:00:25]} cxd4 {[%emt 0:17:22]} 11. exd4 {[%emt 0:01:04]} Rc8 {[%emt 0:03:33]} 12. c4 {[%emt 0:01:02]} f5 {[%emt 0:04:13]} 13. a3 {[%emt 0:03:04]} Na6 {[%emt 0:00:49]} 14. Nxe4 {[%emt 0:05:57]} fxe4 {[%emt 0:04:16]} 15. Nd2 {[%emt 0:00:25]} d5 {[%emt 0:01:39]} 16. Qh5+ {[%emt 0:01:02]} Kf8 {[%emt 0:00:37]} 17. Rad1 {[%emt 0:04:45]} Bg5 {[%emt 0:00:25]} 18. f3 {[%emt 0:04:42]} g6 {[%emt 0:00:29]} 19. Qg4 {[%emt 0:00:40]} e3 {[%emt 0:00:36]} 20. Nb1 {[%emt 0:00:09]} Qf6 {[%emt 0:00:29]} 21. h4 {[%emt 0:01:53]} Bxh4 {[%emt 0:00:27]} 22. Rxe3 {[%emt 0:00:15]} Nc7 {[%emt 0:00:35]} 23. Bd3 {[%emt 0:03:12]} Kg7 {[%emt 0:00:28]} 24. g3 {[%emt 0:02:57]} Bg5 {[%emt 0:00:30]} 25. f4 {[%emt 0:00:10]} Bh6 {[%emt 0:00:25]} 26. Nd2 {[%emt 0:01:25]} Rhf8 {[%emt 0:00:36]} 27. Nf3 {[%emt 0:01:11]} Kg8 {[%emt 0:00:30]} 28. Ne5 {[%emt 0:00:25]} Rcd8 {[%emt 0:00:28]} 29. Re2 {[%emt 0:02:19]} Bg7 {[%emt 0:00:29]} 30. Rh2 {[%emt 0:01:01]} h5 {[%emt 0:00:33]} 31. Qxg6 {[%emt 0:00:18]} Qxg6 {[%emt 0:00:08]} 32. Nxg6 {[%emt 0:00:44]} Rfe8 {[%emt 0:00:32]} 33. Rxh5 {[%emt 0:01:52]} dxc4 {[%emt 0:00:25]} 34. Be2 {[%emt 0:01:12]} cxb3 {[%emt 0:00:38]} 35. Kf2 {[%emt 0:00:58]} Rd5 {[%emt 0:00:46]} 36. Ne5 {[%emt 0:02:26]} Rdd8 {[%emt 0:00:30]} 37. Rc1 {[%emt 0:00:38]} Rc8 {[%emt 0:00:31]} 38. Rc3 {[%emt 0:05:45]} Nd5 {[%emt 0:00:29]} 39. Rxb3 {[%emt 0:05:07]} Nf6 {[%emt 0:00:27]} 40. Rh2 {[%emt 0:00:00]} Rc2 {[%emt 0:00:00]} 41. Kg1 {[%emt 0:03:10]} Bd5 {[%emt 0:11:17]} 42. Rb5 {[%emt 0:01:24]} Rb8 {[%emt 0:14:03]} 43. Bf3 {[%emt 0:08:31]} Rxh2 {[%emt 0:02:33]} 44. Kxh2 {[%emt 0:00:04]} a6 {[%emt 0:03:55]} 45. Rb4 {[%emt 0:00:19]} Bf8 {[%emt 0:00:53]} 46. Bxd5 {[%emt 0:00:08]} Nxd5 {[%emt 0:00:49]} 47. Rc4 {[%emt 0:00:41]} b5 {[%emt 0:00:27]} 48. Rc6 {[%emt 0:00:20]} Rb6 {[%emt 0:00:34]} 49. Rc8 {[%emt 0:00:57]} Ne7 {[%emt 0:00:31]} 50. Rxf8+ {[%emt 0:00:15]} 1-0

[Event "Biel Main Tournament 2019"]
[Site "Biel"]
[Date "2019.07.30"]
[Round "8.2"]
[White "Meinecke, Florian"]
[Black "Esper, Christian"]
[Result "1/2-1/2"]
[ECO "D02"]
[WhiteElo "1968"]
[BlackElo "1979"]
[Annotator "NA"]
[PlyCount "64"]
[EventDate "2019.07.20"]
[EventType "swiss"]
[EventCountry "SUI"]
[SourceTitle "playchess.com"]
[Source "ChessBase"]
[SourceQuality "1"]
[TimeControl "40/5400+30:1800+30"]

1. d4 {[%emt 0:00:00]} d5 {[%emt 0:00:00]} 2. Bf4 {[%emt 0:00:00]} Nf6 {[%emt 0:02:08]} 3. e3 {[%emt 0:00:00]} e6 {[%emt 0:01:04]} 4. Nd2 {[%emt 0:01:21]} Nbd7 {[%emt 0:07:35]} 5. c3 {[%emt 0:02:34]} Be7 {[%emt 0:01:25]} 6. Bd3 {[%emt 0:02:13]} c5 {[%emt 0:07:01]} 7. h3 {[%emt 0:02:25]} b6 {[%emt 0:02:37]} 8. Ngf3 {[%emt 0:01:38]} Bb7 {[%emt 0:02:36]} 9. O-O {[%emt 0:04:33]} O-O {[%emt 0:01:06]} 10. Ne5 {[%emt 0:07:16]} Nxe5 {[%emt 0:04:20]} 11. dxe5 {[%emt 0:09:21]} Nd7 {[%emt 0:03:57]} 12. Qg4 {[%emt 0:03:19]} Kh8 {[%emt 0:07:29]} 13. Nf3 {[%emt 0:06:09]} Qe8 {[%emt 0:13:22]} 14. Ng5 {[%emt 0:10:16]} h6 {[%emt 0:01:57]} 15. Nh7 {[%emt 0:12:59]} Rg8 {[%emt 0:01:49]} 16. Nf6 {[%emt 0:04:39]} Nxf6 {[%emt 0:01:13]} 17. exf6 {[%emt 0:00:15]} Bxf6 {[%emt 0:00:20]} 18. Qh5 {[%emt 0:01:02]} Qf8 {[%emt 0:00:19]} 19. h4 {[%emt 0:04:16]} g6 {[%emt 0:01:18]} 20. Qxh6+ {[%emt 0:01:58]} Qxh6 {[%emt 0:00:13]} 21. Bxh6 {[%emt 0:00:01]} Bxh4 {[%emt 0:00:53]} 22. Bf4 {[%emt 0:00:34]} Bf6 {[%emt 0:00:21]} 23. f3 {[%emt 0:01:43]} Kg7 {[%emt 0:01:55]} 24. Kf2 {[%emt 0:01:09]} Rh8 {[%emt 0:02:41]} 25. Rh1 {[%emt 0:05:11]} c4 {[%emt 0:02:04]} 26. Bc2 {[%emt 0:00:55]} b5 {[%emt 0:01:35]} 27. Rxh8 {[%emt 0:05:41]} Kxh8 {[%emt 0:00:36]} 28. Bd6 {[%emt 0:00:52]} a5 {[%emt 0:01:55]} 29. a3 {[%emt 0:00:58]} Kg7 {[%emt 0:01:39]} 30. f4 {[%emt 0:01:45]} Ra6 {[%emt 0:01:12]} 31. Bc7 {[%emt 0:02:34]} Be7 {[%emt 0:03:31]} 32. g4 {[%emt 0:01:58]} Bd6 {[%emt 0:04:19]} 1/2-1/2

[Event "Biel Main Tournament 2019"]
[Site "Biel"]
[Date "2019.07.30"]
[Round "8.5"]
[White "Marty, Fridolin"]
[Black "Prieb, Robert"]
[Result "1-0"]
[ECO "B98"]
[WhiteElo "1921"]
[BlackElo "1824"]
[Annotator "NA"]
[PlyCount "79"]
[EventDate "2019.07.20"]
[EventType "swiss"]
[EventCountry "SUI"]
[SourceTitle "playchess.com"]
[Source "ChessBase"]
[SourceQuality "1"]
[TimeControl "40/5400+30:1800+30"]

1. e4 {[%emt 0:00:59]} c5 {[%emt 0:00:00]} 2. Nf3 {[%emt 0:00:05]} d6 {[%emt 0:00:00]} 3. d4 {[%emt 0:00:20]} cxd4 {[%emt 0:00:21]} 4. Nxd4 {[%emt 0:00:06]} Nf6 {[%emt 0:00:21]} 5. Nc3 {[%emt 0:00:05]} a6 {[%emt 0:00:16]} 6. Bg5 {[%emt 0:01:58]} e6 {[%emt 0:01:05]} 7. Qe2 {[%emt 0:02:28]} Be7 {[%emt 0:02:29]} 8. f4 {[%emt 0:00:30]} h6 {[%emt 0:02:26]} 9. Bxf6 {[%emt 0:03:42]} Bxf6 {[%emt 0:06:57]} 10. O-O-O {[%emt 0:00:33]} Nd7 {[%emt 0:00:30]} 11. g4 {[%emt 0:08:58]} b5 {[%emt 0:06:03]} 12. Bg2 {[%emt 0:06:27]} Bb7 {[%emt 0:04:22]} 13. e5 {[%emt 0:04:38]} Bxg2 {[%emt 0:01:31]} 14. Qxg2 {[%emt 0:00:54]} dxe5 {[%emt 0:01:46]} 15. fxe5 {[%emt 0:00:54]} Bxe5 {[%emt 0:15:35]} 16. Rhe1 {[%emt 0:09:19]} Bxd4 {[%emt 0:07:58]} 17. Rxd4 {[%emt 0:00:16]} O-O {[%emt 0:00:11]} 18. Ne4 {[%emt 0:04:10]} Qa5 {[%emt 0:05:39]} 19. Re3 {[%emt 0:04:51]} Ne5 {[%emt 0:05:00]} 20. g5 {[%emt 0:03:15]} h5 {[%emt 0:03:53]} 21. Nf6+ {[%emt 0:04:13]} Kh8 {[%emt 0:08:34]} 22. Rxe5 {[%emt 0:02:48]} Qxa2 {[%emt 0:04:05]} 23. Qe4 {[%emt 0:14:00]} g6 {[%emt 0:03:32]} 24. Rc5 {[%emt 0:15:43]} Rad8 {[%emt 0:01:58]} 25. Qe5 {[%emt 0:04:40]} Rxd4 {[%emt 0:06:34]} 26. Qxd4 {[%emt 0:00:15]} e5 {[%emt 0:01:01]} 27. Rxe5 {[%emt 0:02:10]} Qa1+ {[%emt 0:03:15]} 28. Kd2 {[%emt 0:00:09]} Qa5+ {[%emt 0:00:16]} 29. b4 {[%emt 0:01:15]} Qc7 {[%emt 0:00:45]} 30. Nd5 {[%emt 0:01:03]} Qc4 {[%emt 0:03:08]} 31. Qxc4 {[%emt 0:00:21]} bxc4 {[%emt 0:00:02]} 32. Nf6 {[%emt 0:00:38]} Rd8+ {[%emt 0:01:18]} 33. Kc3 {[%emt 0:00:11]} Kg7 {[%emt 0:00:36]} 34. h4 {[%emt 0:01:28]} Kf8 {[%emt 0:00:42]} 35. Kxc4 {[%emt 0:00:24]} Rc8+ {[%emt 0:00:18]} 36. Kb3 {[%emt 0:00:16]} Rd8 {[%emt 0:00:21]} 37. c4 {[%emt 0:00:44]} Rd3+ {[%emt 0:00:12]} 38. Ka4 {[%emt 0:00:15]} Rd8 {[%emt 0:00:19]} 39. Ka5 {[%emt 0:00:50]} Ra8 {[%emt 0:00:12]} 40. Re8+ {[%emt 0:00:00]} 1-0

[Event "Biel Main Tournament 2019"]
[Site "Biel"]
[Date "2019.07.30"]
[Round "8.6"]
[White "Stijve, Niels"]
[Black "Novalic, Miralem"]
[Result "1-0"]
[ECO "B80"]
[WhiteElo "1817"]
[BlackElo "2010"]
[Annotator "NA"]
[PlyCount "20"]
[EventDate "2019.07.20"]
[EventType "swiss"]
[EventCountry "SUI"]
[SourceTitle "playchess.com"]
[Source "ChessBase"]
[SourceQuality "1"]
[TimeControl "40/5400+30:1800+30"]

1. e4 {[%emt 0:00:00]} c5 {[%emt 0:00:00]} 2. Nf3 {[%emt 0:00:00]} d6 {[%emt 0:00:00]} 3. d4 {[%emt 0:00:00]} cxd4 {[%emt 0:00:00]} 4. Nxd4 {[%emt 0:00:00]} Nf6 {[%emt 0:00:06]} 5. Nc3 {[%emt 0:00:07]} a6 {[%emt 0:00:07]} 6. Be3 {[%emt 0:00:58]} e6 {[%emt 0:00:13]} 7. f3 {[%emt 0:03:16]} Be7 {[%emt 0:00:40]} 8. Qd2 {[%emt 0:00:25]} O-O {[%emt 0:00:24]} 9. O-O-O {[%emt 0:00:29]} Qc7 {[%emt 0:02:41]} 10. g4 {[%emt 0:01:32]} Nc6 {[%emt 0:00:40]} 1-0

[Event "Biel Main Tournament 2019"]
[Site "Biel"]
[Date "2019.07.30"]
[Round "8.8"]
[White "Svergina, Sofya"]
[Black "Valencak, Stanislav"]
[Result "0-1"]
[ECO "B38"]
[WhiteElo "1593"]
[BlackElo "1942"]
[Annotator "NA"]
[PlyCount "25"]
[EventDate "2019.07.20"]
[EventType "swiss"]
[EventCountry "SUI"]
[SourceTitle "playchess.com"]
[Source "ChessBase"]
[SourceQuality "1"]
[TimeControl "40/5400+30:1800+30"]

1. e4 {[%emt 0:00:00]} c5 {[%emt 0:00:00]} 2. Nf3 {[%emt 0:00:00]} g6 {[%emt 0:00:17]} 3. d4 {[%emt 0:00:57]} cxd4 {[%emt 0:00:10]} 4. Nxd4 {[%emt 0:00:36]} Bg7 {[%emt 0:00:32]} 5. Be3 {[%emt 0:01:27]} b6 {[%emt 0:00:40]} 6. c4 {[%emt 0:01:40]} Bb7 {[%emt 0:00:17]} 7. Nc3 {[%emt 0:00:13]} Nf6 {[%emt 0:00:17]} 8. f3 {[%emt 0:00:32]} Nc6 {[%emt 0:00:27]} 9. Be2 {[%emt 0:00:32]} O-O {[%emt 0:00:51]} 10. O-O {[%emt 0:00:11]} Rc8 {[%emt 0:00:54]} 11. Rc1 {[%emt 0:01:02]} Ne5 {[%emt 0:01:09]} 12. Nd5 {[%emt 0:02:33]} h5 {[%emt 0:07:36]} 13. h3 {[%emt 0:52:36]} 0-1

[Event "Biel Main Tournament 2019"]
[Site "Biel"]
[Date "2019.07.30"]
[Round "8.9"]
[White "Weyer Hans-Jürgen"]
[Black "Lips, Adrian"]
[Result "0-1"]
[ECO "B92"]
[WhiteElo "1879"]
[BlackElo "1817"]
[Annotator "NA"]
[PlyCount "88"]
[EventDate "2019.07.20"]
[EventType "swiss"]
[EventCountry "SUI"]
[SourceTitle "playchess.com"]
[Source "ChessBase"]
[SourceQuality "1"]
[TimeControl "40/5400+30:1800+30"]

1. e4 {[%emt 0:00:00]} c5 {[%emt 0:00:00]} 2. Nf3 {[%emt 0:00:00]} d6 {[%emt 0:00:00]} 3. d4 {[%emt 0:00:00]} cxd4 {[%emt 0:00:00]} 4. Nxd4 {[%emt 0:00:01]} Nf6 {[%emt 0:00:00]} 5. Nc3 {[%emt 0:00:16]} a6 {[%emt 0:00:01]} 6. Be2 {[%emt 0:01:10]} e5 {[%emt 0:00:29]} 7. Nb3 {[%emt 0:01:48]} Be7 {[%emt 0:00:09]} 8. O-O {[%emt 0:01:02]} O-O {[%emt 0:00:08]} 9. Be3 {[%emt 0:01:28]} Be6 {[%emt 0:00:33]} 10. a4 {[%emt 0:05:33]} Nbd7 {[%emt 0:05:28]} 11. f3 {[%emt 0:07:20]} Nb6 {[%emt 0:03:32]} 12. Re1 {[%emt 0:04:52]} d5 {[%emt 0:11:49]} 13. exd5 {[%emt 0:01:39]} Nbxd5 {[%emt 0:00:25]} 14. Nxd5 {[%emt 0:00:17]} Nxd5 {[%emt 0:00:26]} 15. Bf2 {[%emt 0:01:53]} Qc7 {[%emt 0:06:49]} 16. Nc1 {[%emt 0:09:13]} Rfd8 {[%emt 0:01:26]} 17. Nd3 {[%emt 0:02:07]} Nb4 {[%emt 0:03:57]} 18. a5 {[%emt 0:13:26]} Qxc2 {[%emt 0:10:52]} 19. Rc1 {[%emt 0:04:38]} Qxd1 {[%emt 0:05:26]} 20. Rexd1 {[%emt 0:00:09]} Bb3 {[%emt 0:00:53]} 21. Nxe5 {[%emt 0:09:56]} Bxd1 {[%emt 0:01:11]} 22. Bxd1 {[%emt 0:02:24]} Bf6 {[%emt 0:01:19]} 23. Nc4 {[%emt 0:05:12]} Nd3 {[%emt 0:00:20]} 24. Rb1 {[%emt 0:00:09]} Nxb2 {[%emt 0:19:08]} 25. Nxb2 {[%emt 0:01:01]} Bxb2 {[%emt 0:00:12]} 26. Be2 {[%emt 0:00:05]} Rd2 {[%emt 0:02:02]} 27. Kf1 {[%emt 0:01:46]} Re8 {[%emt 0:06:43]} 28. Bc4 {[%emt 0:03:23]} Rc2 {[%emt 0:01:24]} 29. Be1 {[%emt 0:04:30]} Rxc4 {[%emt 0:01:30]} 30. Rxb2 {[%emt 0:00:06]} Rc1 {[%emt 0:00:06]} 31. Re2 {[%emt 0:00:54]} Rxe2 {[%emt 0:00:20]} 32. Kxe2 {[%emt 0:00:06]} Rxe1+ {[%emt 0:10:40]} 33. Kxe1 {[%emt 0:00:09]} Kf8 {[%emt 0:00:32]} 34. Kd2 {[%emt 0:00:37]} Ke7 {[%emt 0:00:00]} 35. Kc3 {[%emt 0:00:19]} Kd6 {[%emt 0:00:00]} 36. Kc4 {[%emt 0:00:16]} Kc6 {[%emt 0:00:00]} 37. f4 {[%emt 0:01:54]} b5+ {[%emt 0:06:43]} 38. axb6 {[%emt 0:00:06]} Kxb6 {[%emt 0:00:03]} 39. Kb4 {[%emt 0:03:31]} a5+ {[%emt 0:01:51]} 40. Ka4 {[%emt 0:00:00]} f5 {[%emt 0:00:00]} 41. h3 {[%emt 0:04:07]} h5 {[%emt 0:00:45]} 42. g3 {[%emt 0:00:39]} g6 {[%emt 0:00:18]} 43. h4 {[%emt 0:00:05]} Ka6 {[%emt 0:00:03]} 44. Kb3 {[%emt 0:02:24]} Kb5 {[%emt 0:00:04]} 0-1

[Event "Biel Main Tournament 2019"]
[Site "Biel"]
[Date "2019.07.31"]
[Round "8.10"]
[White "Siddharth, Gopakumar"]
[Black "Jenny, Philipp"]
[Result "1/2-1/2"]
[ECO "D10"]
[WhiteElo "1847"]
[BlackElo "1752"]
[Annotator "NA"]
[PlyCount "40"]
[EventDate "2019.07.20"]
[EventType "swiss"]
[EventCountry "SUI"]
[TimeControl "40/5400+30:1800+30"]

1. d4 {[%emt 0:01:45]} d5 {[%emt 0:00:00]} 2. c4 {[%emt 0:00:05]} c6 {[%emt 0:00:00]} 3. cxd5 {[%emt 0:00:04]} cxd5 {[%emt 0:00:00]} 4. Bg5 {[%emt 0:00:04]} g6 {[%emt 0:03:04]} 5. Nc3 {[%emt 0:02:26]} Bg7 {[%emt 0:01:38]} 6. e3 {[%emt 0:02:37]} Nf6 {[%emt 0:01:57]} 7. Qb3 {[%emt 0:01:08]} e6 {[%emt 0:01:58]} 8. Qa3 {[%emt 0:04:54]} Bd7 {[%emt 0:03:52]} 9. Nb5 {[%emt 0:00:30]} Bxb5 {[%emt 0:02:54]} 10. Bxb5+ {[%emt 0:00:05]} Nbd7 {[%emt 0:01:20]} 11. Nf3 {[%emt 0:07:07]} a6 {[%emt 0:02:32]} 12. Bxd7+ {[%emt 0:02:40]} Qxd7 {[%emt 0:00:26]} 13. Rc1 {[%emt 0:02:36]} Ne4 {[%emt 0:11:16]} 14. Bf4 {[%emt 0:01:41]} Bf8 {[%emt 0:03:21]} 15. Qb3 {[%emt 0:02:02]} Qb5 {[%emt 0:02:29]} 16. Qxb5+ {[%emt 0:02:12]} axb5 {[%emt 0:00:19]} 17. O-O {[%emt 0:05:25]} Bd6 {[%emt 0:01:59]} 18. Bh6 {[%emt 0:11:35]} Kd7 {[%emt 0:07:16]} 19. a3 {[%emt 0:00:41]} Rhc8 {[%emt 0:02:19]} 20. Ng5 {[%emt 0:03:10]} f6 {[%emt 0:49:34]} 1/2-1/2

[Event "Biel Main Tournament 2019"]
[Site "Biel"]
[Date "2019.07.31"]
[Round "9.2"]
[White "Thode, Gilda"]
[Black "Sudan, Georges"]
[Result "1-0"]
[ECO "A48"]
[WhiteElo "1931"]
[BlackElo "1978"]
[Annotator "NA"]
[PlyCount "60"]
[EventDate "2019.07.20"]
[EventType "swiss"]
[EventCountry "SUI"]
[SourceTitle "playchess.com"]
[Source "ChessBase"]
[SourceQuality "1"]
[TimeControl "40/5400+30:1800+30"]

1. d4 {[%emt 0:20:53]} Nf6 {[%emt 0:00:00]} 2. Nf3 {[%emt 0:00:33]} g6 {[%emt 0:00:00]} 3. Bg5 {[%emt 0:00:25]} Bg7 {[%emt 0:00:02]} 4. Nbd2 {[%emt 0:00:40]} d6 {[%emt 0:02:16]} 5. e4 {[%emt 0:01:00]} h6 {[%emt 0:02:36]} 6. Bh4 {[%emt 0:00:51]} O-O {[%emt 0:00:45]} 7. c3 {[%emt 0:02:17]} c5 {[%emt 0:02:48]} 8. dxc5 {[%emt 0:01:26]} dxc5 {[%emt 0:00:32]} 9. Bc4 {[%emt 0:02:21]} Nc6 {[%emt 0:03:31]} 10. Qe2 {[%emt 0:38:02]} a6 {[%emt 0:11:04]} 11. a4 {[%emt 0:00:30]} g5 {[%emt 0:03:29]} 12. Bg3 {[%emt 0:00:40]} Nh5 {[%emt 0:00:28]} 13. Nxg5 {[%emt 0:03:20]} Nxg3 {[%emt 0:00:46]} 14. hxg3 {[%emt 0:00:02]} Ne5 {[%emt 0:06:48]} 15. Ngf3 {[%emt 0:07:29]} Bg4 {[%emt 0:00:26]} 16. Qe3 {[%emt 0:03:14]} Bxf3 {[%emt 0:03:27]} 17. gxf3 {[%emt 0:00:39]} Nxc4 {[%emt 0:05:43]} 18. Nxc4 {[%emt 0:00:27]} b5 {[%emt 0:00:12]} 19. Nd2 {[%emt 0:03:49]} Qd6 {[%emt 0:02:56]} 20. e5 {[%emt 0:08:25]} Qxe5 {[%emt 0:12:45]} 21. Qxe5 {[%emt 0:00:22]} Bxe5 {[%emt 0:00:30]} 22. Rh5 {[%emt 0:02:34]} f6 {[%emt 0:00:50]} 23. f4 {[%emt 0:00:48]} Bd6 {[%emt 0:00:12]} 24. Rxh6 {[%emt 0:00:38]} Rab8 {[%emt 0:01:42]} 25. a5 {[%emt 0:00:30]} c4 {[%emt 0:03:28]} 26. Ne4 {[%emt 0:00:31]} Rbd8 {[%emt 0:00:45]} 27. Nxd6 {[%emt 0:00:30]} Rxd6 {[%emt 0:00:03]} 28. Rd1 {[%emt 0:00:31]} Rfd8 {[%emt 0:00:10]} 29. Rd5 {[%emt 0:00:30]} Kf7 {[%emt 0:00:25]} 30. Rxf6+ {[%emt 0:00:00]} Ke8 {[%emt 0:00:00]} 1-0

[Event "Biel Main Tournament 2019"]
[Site "Biel"]
[Date "2019.07.31"]
[Round "9.3"]
[White "Deubelbeiss, Rene"]
[Black "Marty, Fridolin"]
[Result "1/2-1/2"]
[ECO "A25"]
[WhiteElo "1972"]
[BlackElo "1921"]
[Annotator "NA"]
[PlyCount "23"]
[EventDate "2019.07.20"]
[EventType "swiss"]
[EventCountry "SUI"]
[SourceTitle "playchess.com"]
[Source "ChessBase"]
[SourceQuality "1"]
[TimeControl "40/5400+30:1800+30"]

1. c4 {[%emt 0:00:00]} e5 {[%emt 0:00:00]} 2. g3 {[%emt 0:00:00]} Nc6 {[%emt 0:00:00]} 3. Nc3 {[%emt 0:00:21]} Bc5 {[%emt 0:00:17]} 4. Bg2 {[%emt 0:00:15]} a6 {[%emt 0:00:11]} 5. e3 {[%emt 0:01:57]} Ba7 {[%emt 0:00:08]} 6. d3 {[%emt 0:04:20]} d6 {[%emt 0:02:44]} 7. a3 {[%emt 0:05:59]} Nf6 {[%emt 0:02:14]} 8. Nf3 {[%emt 0:03:00]} Bg4 {[%emt 0:04:03]} 9. b4 {[%emt 0:07:33]} Qd7 {[%emt 0:01:38]} 10. Bb2 {[%emt 0:02:57]} Nd8 {[%emt 0:04:37]} 11. h3 {[%emt 0:05:26]} Bh5 {[%emt 0:00:34]} 12. Rc1 {[%emt 0:07:23]} 1/2-1/2

[Event "Biel Main Tournament 2019"]
[Site "Biel"]
[Date "2019.07.31"]
[Round "9.5"]
[White "Lips, Adrian"]
[Black "Meinecke, Florian"]
[Result "1/2-1/2"]
[ECO "B13"]
[WhiteElo "1817"]
[BlackElo "1968"]
[Annotator "NA"]
[PlyCount "20"]
[EventDate "2019.07.20"]
[EventType "swiss"]
[EventCountry "SUI"]
[SourceTitle "playchess.com"]
[Source "ChessBase"]
[SourceQuality "1"]
[TimeControl "40/5400+30:1800+30"]

1. e4 {[%emt 0:00:00]} c6 {[%emt 0:00:00]} 2. d4 {[%emt 0:00:00]} d5 {[%emt 0:00:00]} 3. exd5 {[%emt 0:00:00]} cxd5 {[%emt 0:00:00]} 4. Bd3 {[%emt 0:00:00]} Nc6 {[%emt 0:00:39]} 5. c3 {[%emt 0:00:00]} Nf6 {[%emt 0:00:30]} 6. Bf4 {[%emt 0:00:06]} e6 {[%emt 0:05:00]} 7. Nf3 {[%emt 0:00:20]} Bd6 {[%emt 0:02:28]} 8. Bxd6 {[%emt 0:00:07]} Qxd6 {[%emt 0:00:06]} 9. O-O {[%emt 0:00:27]} O-O {[%emt 0:06:14]} 10. Nbd2 {[%emt 0:00:34]} Re8 {[%emt 0:03:51]} 1/2-1/2